bitfinex-derivatives/quotes_SOLF0:USTF0_20250709
["timestamp","ask_amount","ask_price","bid_price","bid_amount"]
[1752022727833,2.45031734,151.59,151.55,2.45031734]
[1752022728133,8.30395143,151.58,151.55,2.45031734]
[1752022728324,6.5963,151.57,151.55,2.45031734]
[1752022729830,6.5963,151.57,151.53,6.5974]
[1752022730030,6.5963,151.57,151.55,2.45031734]
[1752022730230,6.5963,151.57,151.54,2.45031734]
[1752022730533,6.5963,151.57,151.53,6.5974]
[1752022730728,2.45031734,151.59,151.56,2.45031734]
[1752022730925,2.45031734,151.59,151.55,2.45031734]
[1752022731236,6.5956,151.58,151.56,2.45031734]
[1752022733131,6.5956,151.58,151.55,2.45031734]
[1752022735738,6.5956,151.58,151.55,9.04701734]
[1752022740246,2.2417,151.61,151.57,2.45031734]
[1752022740445,2.2417,151.61,151.58,2.45031734]
[1752022741551,6.595,151.6,151.58,2.45031734]
[1752022746149,11.3363441,151.61,151.58,9.04581734]
[1752022746346,0.05002676,151.61,151.59,2.45031734]
[1752022746850,0.05002676,151.61,151.58,6.5955]
[1752022747152,0.05002676,151.61,151.59,2.45031734]
[1752022747546,8.24112484,151.6,151.57,0.04923215]
[1752022747749,8.24112484,151.59,151.51,52.47675596]
[1752022748051,8.24112484,151.59,151.58,2.45031734]
[1752022748252,8.24112484,151.59,151.58,9.04551734]
[1752022748552,8.24112484,151.59,151.58,2.45031734]
[1752022749647,6.63993867,151.6,151.58,10.69145398]
[1752022749847,6.63993867,151.6,151.59,8.24113664]
[1752022750550,0.04523867,151.6,151.59,8.24113664]
[1752022751653,0.04523867,151.6,151.59,17.28655398]
[1752022753452,6.5931,151.64,151.61,6.5939]
[1752022753654,6.5931,151.64,151.62,8.24113664]
[1752022753854,6.5931,151.64,151.63,8.24113664]
[1752022754555,4.82271734,151.66,151.63,8.24113664]
[1752022754755,4.82271734,151.66,151.64,8.23935534]
[1752022754955,4.82271734,151.66,151.65,8.23935534]
[1752022755455,11.41481734,151.66,151.65,8.23935534]
[1752022755857,11.41481734,151.66,151.65,1e-08]
[1752022758258,8.92161904,151.66,151.65,1e-08]
[1752022760659,4.75182463,151.67,151.65,1e-08]
[1752022760852,2.49332463,151.67,151.63,2.45031734]
[1752022761249,0.04300729,151.67,151.63,2.45031734]
[1752022761460,6.5921,151.66,151.63,9.04341734]
[1752022761962,0.04300729,151.67,151.65,2.45031734]
[1752022762360,2.45031734,151.69,151.65,2.45031734]
[1752022762560,3.33979375,151.68,151.65,2.45031734]
[1752022762760,3.33979375,151.68,151.65,2.49689665]
[1752022763560,2.95678964,151.68,151.65,2.49689665]
[1752022766265,6.5917,151.67,151.65,2.49689665]
[1752022766665,2.45031734,151.67,151.65,0.04657931]
[1752022766862,2.45031734,151.66,151.65,0.04657931]
[1752022767165,9.04241734,151.66,151.65,0.04657931]
[1752022767761,9.04241734,151.66,151.65,8.28526831]
[1752022768464,6.54952128,151.66,151.65,8.28526831]
[1752022768764,4.09920394,151.66,151.65,8.28526831]
[1752022769266,4.09920394,151.66,151.65,0.04657931]
[1752022774864,6.5918,151.67,151.65,0.04657931]
[1752022775370,6.5914,151.68,151.65,6.63907931]
[1752022776469,8.7862,151.69,151.65,6.63907931]
[1752022776669,2.1952,151.69,151.65,6.63907931]
[1752022777570,6.5912,151.68,151.65,6.63907931]
[1752022781174,6.5912,151.68,151.65,0.04657931]
[1752022785877,6.5912,151.68,151.65,6.63897931]
[1752022788874,9.03842554,151.68,151.65,6.63897931]
[1752022790085,9.03842554,151.68,151.64,2.44722554]
[1752022790281,15.51362308,151.67,151.64,2.44722554]
[1752022790585,7.21885117,151.66,151.64,2.44722554]
[1752022790787,9.08628172,151.68,151.64,2.44722554]
[1752022790788,7.21885117,151.65,151.64,9.04012554]
[1752022794392,7.21885117,151.65,151.64,2.44722554]
[1752022794693,7.21885117,151.65,151.63,2.44722554]
[1752022794986,7.21885117,151.64,151.63,9.04062554]
[1752022795292,17.97302354,151.64,151.59,2.44894726]
[1752022795491,15.52407628,151.63,151.6,2.44894726]
[1752022795691,7.21885117,151.62,151.6,6.5944]
[1752022795885,7.21885117,151.61,151.6,9.04300861]
[1752022797990,65.8526,151.82,151.6,2.44860861]
[1752022798190,17.99565359,151.68,151.64,2.44860861]
[1752022798386,8.31186493,151.67,151.64,2.44860861]
[1752022798585,8.31186493,151.66,151.64,2.44860861]
[1752022798796,8.31186493,151.65,151.64,2.44860861]
[1752022799295,8.31186493,151.65,151.63,9.08730347]
[1752022799497,6.5928,151.65,151.63,2.49410347]
[1752022799794,8.31355223,151.64,151.63,2.49410347]
[1752022799995,6.5917,151.67,151.63,2.49410347]
[1752022800297,6.5917,151.67,151.64,2.44860861]
[1752022800796,6.5917,151.67,151.64,6.5927]
[1752022801096,6.5921,151.66,151.64,6.5927]
[1752022801494,6.5921,151.66,151.63,6.63869486]
[1752022801698,3.82385237,151.68,151.63,0.04549486]
[1752022802397,6.5929,151.64,151.63,0.04549486]
[1752022803994,6.5926,151.65,151.63,0.04549486]
[1752022804494,6.5921,151.66,151.63,0.04549486]
[1752022805694,6.5921,151.66,151.63,6.63849486]
[1752022806100,6.5921,151.66,151.63,0.04549486]
[1752022807001,8.9663,151.67,151.63,6.63879486]
[1752022807300,2.3743,151.67,151.63,6.63879486]
[1752022807496,6.5922,151.66,151.63,6.63879486]
[1752022807801,3.82385237,151.68,151.64,6.5929]
[1752022808597,3.82385237,151.68,151.65,6.5924]
[1752022808796,9.24621208,151.7,151.65,6.5924]
[1752022808998,9.24621208,151.74,151.65,3.82361579]
[1752022809199,6.03441579,151.74,151.65,3.82361579]
[1752022809602,6.5893,151.73,151.68,0.04700169]
[1752022809796,6.5893,151.73,151.69,6.5907]
[1752022809996,6.03441579,151.74,151.68,0.04700169]
[1752022810205,6.03441579,151.74,151.68,6.63790169]
[1752022811106,2.2108,151.74,151.68,6.63790169]
[1752022811502,6.5897,151.72,151.69,6.5908]
[1752022811703,2.2108,151.74,151.69,6.5908]
[1752022811903,8.29308621,151.73,151.69,6.5908]
[1752022812099,8.29308621,151.73,151.68,0.04700169]
[1752022812100,9.24621208,151.78,151.72,3.82044567]
[1752022812403,3.82145939,151.75,151.67,3.82145939]
[1752022812707,3.82145939,151.75,151.64,2.331]
[1752022812708,3.82145939,151.75,151.73,0.04959257]
[1752022812900,9.24621208,151.78,151.73,3.82145939]
[1752022813100,3.82145939,151.78,151.71,3.82145939]
[1752022813402,3.82145939,151.78,151.72,0.04970463]
[1752022813798,6.588,151.76,151.72,6.63890463]
[1752022815004,6.5882,151.75,151.72,0.04970463]
[1752022815610,6.5882,151.75,151.72,6.63910463]
[1752022816607,6.5879,151.76,151.72,6.63910463]
[1752022818711,6.5883,151.75,151.72,0.04970463]
[1752022819008,3.87009008,151.75,151.67,3.82145939]
[1752022819202,3.87009008,151.75,151.69,6.5905]
[1752022819203,6.589,151.74,151.69,6.5905]
[1752022819510,3.82145939,151.75,151.69,6.5905]
[1752022820106,6.5892,151.73,151.69,6.5905]
[1752022822710,6.63440776,151.74,151.7,6.5903]
[1752022822908,6.63440776,151.74,151.67,3.82145939]
[1752022823108,6.63440776,151.74,151.64,2.331]
[1752022823109,6.63440776,151.74,151.69,3.82145939]
[1752022823314,6.63440776,151.74,151.7,6.5901]
[1752022824212,8.23290027,151.73,151.7,6.5901]
[1752022824413,6.63440776,151.74,151.7,6.5901]
[1752022824613,8.23250362,151.73,151.7,6.5901]
[1752022824913,6.63440776,151.74,151.7,6.5901]
[1752022825116,8.23224545,151.73,151.7,6.5901]
[1752022825413,6.63440776,151.74,151.7,6.5901]
[1752022825612,8.23163289,151.73,151.7,6.5901]
[1752022825813,6.63440776,151.74,151.7,6.5901]
[1752022826015,0.04550776,151.74,151.71,6.5896]
[1752022826213,0.04550776,151.74,151.69,3.82145939]
[1752022827012,6.63410776,151.74,151.7,6.5901]
[1752022830115,7.11035469,151.73,151.7,6.5901]
[1752022830316,6.63410776,151.74,151.71,6.9537049]
[1752022830515,6.63410776,151.74,151.72,6.9537049]
[1752022830716,6.63410776,151.74,151.73,6.9537049]
[1752022830917,8.28358218,151.74,151.73,6.95341711]
[1752022831720,8.29201755,151.74,151.73,6.95341711]
[1752022833020,14.88061755,151.74,151.73,6.95341711]
[1752022836822,14.88061755,151.74,151.73,6.92141364]
[1752022837627,6.63410776,151.74,151.73,6.92141364]
[1752022837925,14.88846663,151.74,151.73,6.92141364]
[1752022842327,14.88846663,151.74,151.73,6.92689375]
[1752022843327,14.91378969,151.74,151.73,6.92689375]
[1752022851837,8.32518969,151.74,151.73,6.92689375]
[1752022857740,8.36114335,151.74,151.73,6.92689375]
[1752022863242,17.39474296,151.74,151.73,6.92689375]
[1752022866446,21.4042969,151.74,151.71,6.5898]
[1752022866647,8.31563559,151.73,151.71,6.5898]
[1752022866841,8.31563559,151.72,151.7,2.44499961]
[1752022867048,9.07910737,151.74,151.7,9.03519961]
[1752022867049,8.31563559,151.71,151.7,9.03519961]
[1752022869544,8.31563559,151.71,151.68,2.44576678]
[1752022869749,8.31563559,151.7,151.67,2.44576678]
[1752022869948,8.31385993,151.69,151.64,2.331]
[1752022870250,0.04568643,151.7,151.67,2.44576678]
[1752022870444,8.31291766,151.69,151.67,2.44576678]
[1752022870645,8.31291766,151.68,151.67,9.03716678]
[1752022870842,8.31291766,151.68,151.67,6.5914]
[1752022873452,6.63598643,151.7,151.67,6.5914]
[1752022873653,8.19971332,151.69,151.67,6.5914]
[1752022873853,8.19998999,151.68,151.67,6.5914]
[1752022875051,8.19998999,151.68,151.66,6.5919]
[1752022875248,6.5908,151.69,151.66,6.5919]
[1752022875451,8.19675354,151.68,151.66,6.5919]
[1752022875658,6.5912,151.68,151.65,6.5923]
[1752022876259,8.00546761,151.67,151.65,6.5923]
[1752022876453,6.5909,151.69,151.65,6.5923]
[1752022876653,8.00241904,151.68,151.65,6.5923]
[1752022876852,6.5909,151.69,151.65,6.5923]
[1752022877054,8.00241904,151.68,151.65,6.5923]
[1752022877354,6.63618643,151.7,151.66,6.5918]
[1752022877660,7.99042952,151.69,151.66,6.5918]
[1752022877854,0.04568643,151.7,151.66,6.5918]
[1752022878058,0.04568643,151.7,151.67,6.5912]
[1752022878059,7.99029132,151.69,151.67,6.5912]
[1752022878359,2.2856,151.71,151.67,6.5912]
[1752022878560,8.03611809,151.7,151.67,6.5912]
[1752022878761,0.04703985,151.7,151.67,6.5912]
[1752022879565,6.63743985,151.7,151.67,6.5912]
[1752022880063,0.04703985,151.7,151.67,6.5912]
[1752022881762,0.04703985,151.7,151.69,3.8223872]
[1752022883558,0.04703985,151.7,151.69,10.4131872]
[1752022883754,0.04703985,151.7,151.67,3.8223872]
[1752022884566,0.04703985,151.7,151.68,6.591]
[1752022886064,0.04703985,151.7,151.61,62.0]
[1752022886270,0.04703985,151.7,151.65,3.8223872]
[1752022886860,6.63763985,151.7,151.66,6.5919]
[1752022887366,6.5908,151.69,151.65,10.4147872]
[1752022887865,6.5915,151.68,151.64,6.5928]
[1752022891269,3.86942705,151.7,151.6,569.2]
[1752022891470,3.8223872,151.68,151.61,3.8223872]
[1752022891873,0.04514923,151.66,151.63,6.5933]
[1752022892175,0.04514923,151.66,151.61,3.8223872]
[1752022892471,6.63754923,151.66,151.62,6.5936]
[1752022892674,3.86753643,151.66,151.59,6.1237872]
[1752022892871,6.5925,151.65,151.61,6.5942]
[1752022893068,0.04514923,151.66,151.61,3.8223872]
[1752022893579,6.63744923,151.66,151.62,6.5934]
[1752022895578,0.04514923,151.66,151.6,3.8223872]
[1752022896078,6.5926,151.65,151.61,6.5941]
[1752022898078,6.593,151.64,151.61,6.5941]
[1752022899575,6.5926,151.65,151.62,6.5938]
[1752022899980,6.5926,151.65,151.61,6.5941]
[1752022901177,6.5926,151.65,151.62,6.5937]
[1752022901582,6.63744923,151.66,151.62,6.5937]
[1752022901776,0.04514923,151.66,151.62,6.5937]
[1752022902581,6.5926,151.65,151.62,6.5937]
[1752022905378,0.04514923,151.66,151.62,3.8223872]
[1752022905581,0.04514923,151.66,151.64,3.8223872]
[1752022905980,2.228,151.71,151.64,3.8223872]
[1752022905981,7.97694808,151.7,151.64,3.8223872]
[1752022906187,2.228,151.71,151.66,3.8223872]
[1752022906492,8.8181,151.71,151.68,6.591]
[1752022907289,8.8181,151.71,151.68,6.63982267]
[1752022910185,2.228,151.71,151.69,6.5906]
[1752022910391,6.5896,151.72,151.69,6.5906]
[1752022916298,6.5892,151.73,151.69,6.5906]
[1752022916488,7.98357339,151.72,151.69,6.5906]
[1752022916790,6.5892,151.73,151.69,6.5906]
[1752022916990,7.98357339,151.72,151.69,6.5906]
[1752022917195,6.5892,151.73,151.69,6.5906]
[1752022917389,7.98312345,151.72,151.69,6.5906]
[1752022917591,6.5892,151.73,151.69,6.5906]
[1752022917885,14.57262345,151.72,151.69,6.5906]
[1752022918086,6.5895,151.72,151.69,6.5906]
[1752022919098,6.5892,151.73,151.69,6.5906]
[1752022919394,7.98268921,151.72,151.69,6.5906]
[1752022919597,3.8223872,151.74,151.69,6.5906]
[1752022919896,7.98221995,151.73,151.69,6.5906]
[1752022920091,7.98221995,151.72,151.69,6.5906]
[1752022920296,6.5892,151.73,151.7,6.5903]
[1752022920495,7.98186922,151.72,151.7,6.5903]
[1752022920696,6.5892,151.73,151.7,6.5903]
[1752022920897,7.98186922,151.72,151.7,6.5903]
[1752022921098,6.5892,151.73,151.7,6.5903]
[1752022921300,7.9817695,151.72,151.7,6.5903]
[1752022921495,6.5892,151.73,151.7,6.5903]
[1752022921691,7.98147142,151.72,151.7,6.5903]
[1752022921896,6.5892,151.73,151.69,6.5906]
[1752022922088,8.04493888,151.72,151.69,6.5906]
[1752022922292,6.5892,151.73,151.69,6.5906]
[1752022922497,8.04458893,151.72,151.69,6.5906]
[1752022922696,6.5892,151.73,151.69,6.5906]
[1752022922897,8.04458893,151.72,151.69,6.5906]
[1752022923097,6.5892,151.73,151.69,6.5906]
[1752022923298,8.04456789,151.72,151.69,6.5906]
[1752022923500,6.5895,151.72,151.69,6.5906]
[1752022924800,6.5895,151.72,151.69,9.03638326]
[1752022927402,6.5895,151.72,151.69,2.44578326]
[1752022928300,6.59,151.71,151.69,2.44578326]
[1752022928492,2.44578326,151.73,151.68,0.04882267]
[1752022928698,2.44578326,151.71,151.68,0.04882267]
[1752022929201,6.5907,151.7,151.68,0.04882267]
[1752022929602,6.5907,151.7,151.68,2.49460593]
[1752022932906,6.5903,151.7,151.68,0.04882267]
[1752022933205,6.5903,151.7,151.68,2.49460593]
[1752022933905,6.5901,151.71,151.68,2.49460593]
[1752022934206,6.5901,151.71,151.69,2.44578326]
[1752022936005,6.5901,151.71,151.68,9.08580593]
[1752022937608,6.5904,151.7,151.68,0.04882267]
[1752022937804,6.5904,151.7,151.68,2.49460593]
[1752022938907,11.45606897,151.75,151.68,2.49460593]
[1752022939110,2.44578326,151.73,151.69,9.03638326]
[1752022939315,8.02726547,151.72,151.69,9.03638326]
[1752022939511,2.44578326,151.73,151.69,9.03638326]
[1752022939713,8.02713868,151.72,151.69,9.03638326]
[1752022940011,2.44578326,151.73,151.69,9.03638326]
[1752022940210,8.02713868,151.72,151.69,9.03638326]
[1752022940411,2.44578326,151.73,151.69,9.03638326]
[1752022940605,14.61722101,151.72,151.69,9.03638326]
[1752022940902,6.5896,151.72,151.69,9.03638326]
[1752022942512,6.5896,151.72,151.7,2.44578326]
[1752022942711,6.5896,151.72,151.69,2.44578326]
[1752022943414,6.5899,151.71,151.69,2.44578326]
[1752022943708,10.48686916,151.7,151.68,0.04882267]
[1752022943908,8.04082043,151.69,151.68,0.04882267]
[1752022944112,10.48777899,151.69,151.68,0.04882267]
[1752022945509,17.07857899,151.69,151.68,0.04882267]
[1752022947014,14.63162043,151.69,151.68,0.04882267]
[1752022959622,8.04082043,151.69,151.68,0.04882267]
[1752022959831,8.04082043,151.69,151.68,2.49578123]
[1752022960023,2.44695856,151.73,151.68,2.49578123]
[1752022960224,2.44695856,151.73,151.7,2.44695856]
[1752022960225,8.02154933,151.72,151.7,2.44695856]
[1752022960527,8.02154933,151.71,151.69,9.03745856]
[1752022960728,8.02154933,151.7,151.69,9.03745856]
[1752022961621,6.5895,151.72,151.69,9.03745856]
[1752022961824,8.02126448,151.71,151.69,9.03745856]
[1752022962023,6.5895,151.72,151.69,9.03745856]
[1752022962232,8.02126448,151.71,151.69,9.03745856]
[1752022962431,6.5895,151.72,151.69,2.44695856]
[1752022962730,8.03961388,151.71,151.69,2.44695856]
[1752022962929,9.03645856,151.72,151.69,2.44695856]
[1752022963232,14.62971388,151.71,151.69,2.44695856]
[1752022963432,8.03961388,151.7,151.69,2.44695856]
[1752022964832,17.07717244,151.7,151.68,0.04882267]
[1752022965130,8.04079759,151.69,151.68,0.04882267]
[1752022965532,14.63159759,151.69,151.68,0.04882267]
[1752022969336,17.07855615,151.69,151.68,0.04882267]
[1752022975235,10.48775615,151.69,151.68,0.04882267]
[1752022975431,8.04079759,151.69,151.68,0.04882267]
[1752022976138,14.63159759,151.69,151.68,0.04882267]
[1752022977932,8.04079759,151.69,151.68,6.64002267]
[1752022982542,8.04079759,151.69,151.68,0.04882267]
[1752022985747,8.04079759,151.69,151.68,6.64002267]
[1752022986044,8.04079759,151.69,151.68,9.08698123]
[1752022987646,2.44695856,151.73,151.69,6.5905]
[1752022987948,14.61824938,151.72,151.69,9.03745856]
[1752022988142,8.02864938,151.71,151.69,2.44695856]
[1752022988344,8.02864938,151.7,151.69,2.44695856]
[1752022989948,14.61894938,151.7,151.69,2.44695856]
[1752022991749,14.61894938,151.7,151.68,2.49578123]
[1752022991949,6.5903,151.7,151.68,2.49578123]
[1752022992952,6.5908,151.69,151.68,2.49578123]
[1752022993147,14.64673857,151.69,151.68,2.49578123]
[1752022993554,14.64673857,151.69,151.68,0.04882267]
[1752022994654,8.05593857,151.69,151.68,0.04882267]
[1752022995547,6.5904,151.7,151.68,0.04882267]
[1752022996155,6.5908,151.69,151.68,0.04882267]
[1752022996349,2.44695856,151.71,151.68,0.04882267]
[1752022996549,14.64627824,151.7,151.68,0.04882267]
[1752022996749,6.5906,151.7,151.68,0.04882267]
[1752023000057,6.5906,151.7,151.68,2.49578123]
[1752023000758,6.5901,151.71,151.68,9.08698123]
[1752023001057,8.05546304,151.7,151.68,2.49578123]
[1752023001258,2.44695856,151.72,151.68,2.49578123]
[1752023001454,14.64576124,151.71,151.68,2.49578123]
[1752023001657,8.05556124,151.7,151.68,2.49578123]
[1752023001859,6.5902,151.71,151.68,2.49578123]
[1752023002059,8.05552432,151.7,151.68,2.49578123]
[1752023002361,6.5902,151.71,151.68,2.49578123]
[1752023002557,8.05563195,151.7,151.68,6.64002267]
[1752023002758,9.03715856,151.71,151.68,6.64002267]
[1752023002958,8.05563196,151.7,151.68,6.64002267]
[1752023003160,9.03715856,151.71,151.68,6.64002267]
[1752023003357,8.05578803,151.7,151.68,0.04882267]
[1752023003558,9.03715856,151.71,151.68,0.04882267]
[1752023003758,8.05578679,151.7,151.68,0.04882267]
[1752023003960,9.03715856,151.71,151.68,0.04882267]
[1752023004163,8.05578679,151.7,151.68,6.64002267]
[1752023004361,9.03715856,151.71,151.68,6.64002267]
[1752023004663,14.64598015,151.7,151.68,0.04882267]
[1752023004862,6.5904,151.7,151.68,0.04882267]
[1752023005462,9.03705856,151.71,151.68,6.64002267]
[1752023005663,8.05571957,151.7,151.68,6.64002267]
[1752023005859,9.03705856,151.71,151.68,6.64002267]
[1752023006058,8.05571957,151.7,151.68,6.64002267]
[1752023006261,9.03705856,151.71,151.68,6.64002267]
[1752023006458,8.05569328,151.7,151.68,6.64002267]
[1752023006656,9.03705856,151.71,151.68,6.64002267]
[1752023006863,8.05572087,151.7,151.68,6.64002267]
[1752023007164,9.03705856,151.71,151.68,6.64002267]
[1752023007364,8.05582933,151.7,151.68,6.64002267]
[1752023007558,9.03705856,151.71,151.68,6.64002267]
[1752023007759,8.05585141,151.7,151.68,6.64002267]
[1752023007964,9.03705856,151.71,151.68,6.64002267]
[1752023008164,8.05585141,151.7,151.68,6.64002267]
[1752023008364,9.03705856,151.71,151.68,6.64002267]
[1752023008564,8.05591312,151.7,151.68,6.64002267]
[1752023008762,9.03705856,151.71,151.68,6.64002267]
[1752023008962,8.05591312,151.7,151.68,6.64002267]
[1752023009163,6.5901,151.71,151.68,9.08698123]
[1752023009364,8.05589517,151.7,151.68,9.08698123]
[1752023009663,6.5901,151.71,151.68,9.08698123]
[1752023009864,8.05591446,151.7,151.68,2.49578123]
[1752023010065,6.5901,151.71,151.68,2.49578123]
[1752023010263,8.05573514,151.7,151.68,2.49578123]
[1752023010464,6.5901,151.71,151.68,2.49578123]
[1752023010766,8.05576481,151.7,151.68,2.49578123]
[1752023010969,6.5901,151.71,151.68,2.49578123]
[1752023011164,8.05576481,151.7,151.68,2.49578123]
[1752023011369,6.5901,151.71,151.68,2.49578123]
[1752023011568,8.05562678,151.7,151.68,2.49578123]
[1752023011869,6.5901,151.71,151.68,2.49578123]
[1752023012069,8.05562678,151.7,151.68,2.49578123]
[1752023012270,6.5901,151.71,151.68,2.49578123]
[1752023012470,8.05544789,151.7,151.68,2.49578123]
[1752023012672,6.5901,151.71,151.68,2.49578123]
[1752023012871,8.05549435,151.7,151.68,2.49578123]
[1752023013074,6.5901,151.71,151.68,2.49578123]
[1752023013273,8.05516056,151.7,151.68,2.49578123]
[1752023013474,6.5901,151.71,151.68,2.49578123]
[1752023013670,8.05507677,151.7,151.68,0.04882267]
[1752023013977,6.5905,151.7,151.68,2.49578123]
[1752023015578,6.5905,151.7,151.68,0.04882267]
[1752023020178,8.04883331,151.69,151.68,0.04882267]
[1752023022081,8.04883331,151.69,151.68,2.49578123]
[1752023025080,14.63963331,151.69,151.68,0.04882267]
[1752023035484,8.04883331,151.69,151.68,2.49578123]
[1752023035787,11.67252753,151.74,151.68,2.49578123]
[1752023035987,8.04197957,151.73,151.7,2.44695856]
[1752023036190,14.63177957,151.72,151.69,9.03765856]
[1752023036384,8.04197957,151.71,151.69,9.03765856]
[1752023036579,8.04197957,151.7,151.69,9.03765856]
[1752023039280,8.04197957,151.7,151.69,2.44695856]
[1752023042088,8.04197957,151.7,151.69,9.03775856]
[1752023043187,11.52546897,151.75,151.7,6.59]
[1752023043392,8.00704708,151.74,151.71,2.44695856]
[1752023043592,13.97242753,151.75,151.71,2.44695856]
[1752023043788,6.5893,151.73,151.71,2.44695856]
[1752023043990,6.5893,151.73,151.71,2.49473454]
[1752023045992,6.5893,151.73,151.72,2.44695856]
[1752023047295,6.5888,151.74,151.72,2.44695856]
[1752023047493,4.74685856,151.75,151.72,2.44695856]
[1752023048394,6.589,151.74,151.72,2.44695856]
[1752023049796,6.589,151.74,151.71,0.04777598]
[1752023049997,6.589,151.74,151.72,2.44695856]
[1752023051797,6.589,151.74,151.71,0.04777598]
[1752023051798,6.589,151.74,151.71,2.49473454]
[1752023053391,6.5891,151.73,151.71,2.49473454]
[1752023054100,6.5891,151.73,151.71,0.04777598]
[1752023054297,6.5891,151.73,151.72,2.44695856]
[1752023054495,6.5888,151.74,151.72,2.44695856]
[1752023058308,2.2999,151.75,151.72,9.03605856]
[1752023058606,2.44695856,151.77,151.74,2.44695856]
[1752023058807,8.00599132,151.76,151.74,2.44695856]
[1752023059007,8.00599132,151.75,151.74,2.44695856]
[1752023061307,6.588,151.76,151.74,2.44695856]
[1752023061712,6.5874,151.77,151.74,9.03555856]
[1752023062005,8.00239567,151.76,151.74,9.03555856]
[1752023062210,6.5874,151.77,151.74,9.03555856]
[1752023062404,8.00153772,151.76,151.74,9.03555856]
[1752023062711,6.5874,151.77,151.74,9.03555856]
[1752023063009,8.00127485,151.76,151.74,9.03555856]
[1752023063211,6.5874,151.77,151.74,9.03555856]
[1752023063410,8.00053693,151.76,151.75,2.44695856]
[1752023064505,8.00053693,151.76,151.75,9.03515856]
[1752023064710,4.72595856,151.8,151.75,9.03515856]
[1752023065010,8.0251045,151.79,151.76,2.44695856]
[1752023065212,4.72595856,151.8,151.76,2.44695856]
[1752023065417,8.02283535,151.79,151.76,2.44695856]
[1752023065616,4.72595856,151.8,151.76,2.44695856]
[1752023065817,8.02259192,151.79,151.76,2.44695856]
[1752023066117,6.5865,151.79,151.76,2.44695856]
[1752023066318,4.72595856,151.8,151.76,2.44695856]
[1752023066512,8.02040122,151.79,151.76,2.44695856]
[1752023066712,4.72595856,151.8,151.76,2.44695856]
[1752023066920,6.5869,151.78,151.76,2.44695856]
[1752023067814,6.5873,151.77,151.75,2.44695856]
[1752023069219,9.03405856,151.78,151.75,2.44695856]
[1752023070120,6.5871,151.78,151.75,2.44695856]
[1752023070821,6.5876,151.77,151.75,2.44695856]
[1752023074723,9.03405856,151.78,151.75,9.03505856]
[1752023075423,6.5871,151.78,151.75,9.03505856]
[1752023075826,6.5871,151.78,151.76,2.44695856]
[1752023079522,19.7452,151.9,151.77,2.44695856]
[1752023079729,8.02672589,151.83,151.8,2.44695856]
[1752023079922,8.02672589,151.82,151.8,2.44695856]
[1752023080122,8.02672589,151.81,151.8,2.49081523]
[1752023080422,2.44695856,151.84,151.8,2.49081523]
[1752023080728,14.60853444,151.83,151.8,9.07681523]
[1752023081026,6.5848,151.83,151.8,9.07681523]
[1752023082227,9.03175856,151.83,151.8,9.07681523]
[1752023085422,4.6788,151.85,151.81,2.44695856]
[1752023085627,4.6788,151.85,151.82,2.44695856]
[1752023085822,4.6788,151.85,151.83,2.44695856]
[1752023086631,11.2627,151.85,151.83,2.44695856]
[1752023086831,11.2627,151.85,151.82,9.03185856]
[1752023087834,4.6788,151.85,151.82,9.03185856]
[1752023088035,4.6788,151.85,151.84,6.5843]
[1752023088234,5.35766178,151.89,151.83,2.44695856]
[1752023088436,9.03045856,151.86,151.83,2.44695856]
[1752023088634,9.03045856,151.86,151.82,9.03185856]
[1752023088935,9.03045856,151.86,151.83,0.04557478]
[1752023089230,9.03045856,151.86,151.83,2.49253334]
[1752023089436,6.5835,151.86,151.83,2.49253334]
[1752023089740,6.5839,151.85,151.83,0.04557478]
[1752023090640,9.03055856,151.86,151.83,0.04557478]
[1752023090832,6.5836,151.86,151.83,0.04557478]
[1752023091138,2.44695856,151.86,151.83,0.04557478]
[1752023091438,2.44695856,151.85,151.83,0.04557478]
[1752023091933,5.35766178,151.89,151.83,9.07723334]
[1752023092132,8.04990975,151.88,151.83,9.07723334]
[1752023092333,2.44695856,151.86,151.83,9.07723334]
[1752023092533,9.03045856,151.86,151.83,0.04557478]
[1752023093640,6.5835,151.86,151.83,0.04557478]
[1752023093839,9.03045856,151.86,151.83,6.63017478]
[1752023094843,9.03045856,151.86,151.83,0.04557478]
[1752023095145,6.5835,151.86,151.83,0.04557478]
[1752023095347,6.5832,151.87,151.83,0.04557478]
[1752023095547,2.44695856,151.86,151.83,6.63027478]
[1752023096047,9.03045856,151.86,151.83,6.63027478]
[1752023096540,9.03045856,151.86,151.83,0.04557478]
[1752023097746,2.44695856,151.85,151.83,6.63027478]
[1752023099047,2.44695856,151.86,151.83,6.63027478]
[1752023099643,2.44695856,151.86,151.84,6.5843]
[1752023100742,6.5827,151.88,151.84,6.5843]
[1752023100948,7.80462034,151.89,151.83,0.04557478]